fUSD/lending_fUSD_20260313
["ID","MTS","AMOUNT","RATE_DAILY","PERIOD"]
[408297102,1773377444336,-166.64,0.00016712,2]
[408297103,1773377444346,-10181.92709899,0.000168,2]
[408297104,1773377444356,-433.0,0.00016839,2]
[408297105,1773377444366,-173.44,0.00016883,2]
[408297106,1773377444375,-8718.5655743,0.00016885,2]
[408297107,1773377444385,-318.264289,0.00016955,7]
[408297108,1773377444398,-36.40511314,0.00016973,2]
[408297109,1773377444412,-463.59488686,0.00016973,2]
[408297110,1773377444421,-287.97716186,0.00016973,2]
[408297111,1773377444431,-239.96667002,0.00016973,2]
[408297112,1773377444445,-1000.0,0.00016986,2]
[408297113,1773377444455,-1088.3773007,0.00016988,2]
[408297114,1773377444464,-500.0,0.00016999,2]
[408297115,1773377444474,-517.30693522,0.00016999,2]
[408297116,1773377444486,-500.0,0.00016999,2]
[408297117,1773377444495,-500.0,0.00016999,2]
[408297118,1773377444504,-500.0,0.00016999,2]
[408297119,1773377444517,-42828.56906791,0.00017,2]
[408297121,1773377446050,-172.45961366,0.00014517,2]
[408297122,1773377446060,-189.35629021,0.00014517,2]
[408297123,1773377446071,-275.97330576,0.00014517,2]
[408297124,1773377446081,-500.0,0.00014517,2]
[408297125,1773377446091,-496.90842985,0.00014517,2]
[408297126,1773377446101,-103625.75771364,0.00017,2]
[408297127,1773377446111,-508.0,0.00017,2]
[408297128,1773377446121,-300.0,0.00017,2]
[408297129,1773377446132,-152.0,0.00017033,4]
[408297130,1773377446143,-587.0,0.00017047,2]
[408297131,1773377446153,-500.0,0.00017049,2]
[408297132,1773377446163,-887.73,0.00017049,2]
[408297133,1773377446173,-887.73,0.00017049,2]
[408297134,1773377446183,-175.51429186,0.00017098,2]
[408297135,1773377446194,-151.0,0.00017105,2]
[408297136,1773377446204,-500.0,0.00017107,2]
[408297137,1773377446214,-500.0,0.00017107,2]
[408297138,1773377446224,-500.0,0.00017107,2]
[408297139,1773377446234,-500.0,0.00017107,2]
[408297140,1773377446246,-500.0,0.00017107,2]
[408297141,1773377446256,-151.0,0.00017108,2]
[408297142,1773377446267,-166.66,0.00017108,2]
[408297143,1773377446276,-57122.31108622,0.00017108,2]
[408297144,1773377446371,-172.45961365,0.00014517,2]
[408297145,1773377446381,-109.22039035,0.00014517,2]
[408297146,1773377446393,-80.13589987,0.00014517,2]
[408297147,1773377446404,-491.88379791,0.00017108,2]
[408297148,1773377446415,-1893.12,0.00017108,2]
[408297149,1773377446427,-258.07649953,0.00017108,2]
[408297150,1773377460286,10000.0,0.00014318,2]
[408297151,1773377460453,-10000.0,0.00014318,2]
[408297152,1773377501779,177.32,8.216e-05,2]
[408297153,1773377501977,177.32,0.00010954,2]
[408297154,1773377502177,177.32,0.00013693,2]
[408297155,1773377556717,-2810.0542,0.00014318,2]
[408297156,1773377556737,-1000.0,0.00014318,2]
[408297157,1773377556758,-6189.9458,0.00014318,2]
[408297158,1773377559571,-3066.2419,0.00014318,2]
[408297159,1773377559591,-500.0,0.00014573,2]
[408297160,1773377635482,1000.0,0.00014318,2]
[408297161,1773377705468,163.0,0.000147,2]
[408297162,1773377706864,161.0,0.000147,2]
[408297177,1773377760958,246.2267,0.00014318,2]
[408297180,1773377769695,2107.13,0.00011507,2]
[408297181,1773377859099,2756.4014,0.000147,2]
[408297182,1773377859119,1051.6686,0.000147,2]
[408297183,1773377922538,200.0,0.00013909,2]
[408297185,1773377994834,8748.3314,0.0001199,2]
[408297186,1773377994854,2567.80374959,0.0001199,2]
[408297187,1773378001989,5005.49459091,8e-05,2]
[408297188,1773378029671,1343.0,0.00014486,2]
[408297189,1773378040610,1083.7016595,0.00014486,2]
[408297190,1773378040634,1379.2983405,0.00014486,2]
[408297193,1773378106756,414.70414109,0.00013,15]
[408297194,1773378128781,1000.0,0.000135,2]
[408297195,1773378147667,1969.94484806,0.0001,2]
[408297196,1773378150459,2292.90769059,0.0001421,7]
[408297202,1773378156638,2943.14497976,9.5e-05,3]
[408297203,1773378156673,36690.07589463,9.5e-05,3]
[408297206,1773378600260,1500.0,0.00013909,2]
[408297263,1773378638251,-692.442601,0.00014738,2]
[408297264,1773378638260,-273.0,0.00014812,2]
[408297265,1773378638269,-237.18143312,0.00014812,2]
[408297266,1773378638279,-212.98862737,0.00014812,2]
[408297267,1773378638290,-34.30991642,0.00014812,2]
[408297268,1773378638299,-188.67257488,0.0001485,2]
[408297270,1773378638308,-287.17432935,0.00014899,2]
[408297271,1773378638317,-127.13716211,0.00014998,2]
[408297287,1773378640469,-415.02044988,0.00014998,2]
[408297288,1773378640481,-657.84238801,0.00014998,2]
[408297289,1773378640490,-300.0,0.00014998,2]
[408297290,1773378640500,-245.57954467,0.00014999,2]
[408297299,1773378643357,-954.42045533,0.00014999,2]
[408297300,1773378643367,-300.0,0.00014999,2]
[408297301,1773378643376,-1424.64131931,0.00015,2]
[408297302,1773378643385,-8025.57749208,0.00015,2]
[408297303,1773378643394,-188.67257488,0.00015,2]
[408297304,1773378643403,-500.0,0.00015,30]
[408297305,1773378643412,-300.0,0.00015134,2]
[408297306,1773378643421,-620.0,0.00015135,2]
[408297307,1773378643431,-3753.0,0.00015135,2]
[408297308,1773378643440,-423.569,0.00015135,2]
[408297309,1773378643449,-5998.0,0.00015135,2]
[408297310,1773378643459,-311.4,0.00015507,2]
[408297311,1773378643468,-500.0,0.00015662,2]
[408297312,1773378643478,-4171.21,0.00015706,2]
[408297313,1773378643486,-737.043,0.00015716,2]
[408297314,1773378643495,-2532.68,0.00015716,2]
[408297315,1773378643505,-347.3,0.00015732,2]
[408297316,1773378643514,-313.89207,0.000158,7]
[408297317,1773378643523,-2000.0,0.0001589,2]
[408297318,1773378643532,-786.45142,0.000161,2]
[408297319,1773378643541,-417.18,0.00016116,2]
[408297320,1773378643550,-3199.71,0.00016116,2]
[408297321,1773378643559,-1048.52,0.00016116,2]
[408297322,1773378643567,-7801.73,0.00016116,2]
[408297323,1773378643576,-5339.1,0.00016116,2]
[408297324,1773378643585,-3038.37,0.00016116,2]
[408297325,1773378643594,-9999.99,0.00016116,2]
[408297326,1773378643602,-999.99,0.00016116,2]
[408297327,1773378643611,-430.52,0.00016116,2]
[408297328,1773378643620,-2917.19,0.00016116,2]
[408297329,1773378643629,-21337.38,0.00016116,2]
[408297330,1773378643637,-516.89,0.00016116,2]
[408297331,1773378643646,-3600.78,0.00016116,2]
[408297332,1773378643655,-150.99,0.00016116,2]
[408297333,1773378643664,-9999.99,0.00016116,2]
[408297334,1773378643673,-150.99,0.00016116,2]
[408297335,1773378643682,-4359.28278715,0.00016153,2]
[408297336,1773378643691,-41377.63316611,0.000162,5]
[408297337,1773378643700,-250.0,0.00016253,2]
[408297338,1773378643709,-5000.0,0.00016253,2]
[408297339,1773378643718,-250.0,0.00016253,2]
[408297340,1773378643728,-250.0,0.00016253,2]
[408297341,1773378643737,-600.0,0.00016253,2]
[408297342,1773378643746,-300.5159349,0.00016253,2]
[408297343,1773378643755,-300.0,0.00016253,2]
[408297344,1773378643764,-291.905348,0.00016253,7]
[408297345,1773378643773,-510.0,0.00016254,2]
[408297346,1773378643782,-300.0,0.00016416,2]
[408297347,1773378643791,-177.32,0.00016432,2]
[408297348,1773378643800,-1000.0,0.00016438,2]
[408297349,1773378643813,-1697.56,0.0001645,2]
[408297350,1773378643822,-2777.58,0.00016464,2]
[408297351,1773378643831,-1680.0,0.00016498,2]
[408297352,1773378643840,-4359.28278715,0.00016569,2]
[408297353,1773378643849,-1000.0,0.00016712,2]
[408297354,1773378643858,-608.22,0.000168,7]
[408297355,1773378643867,-2777.58,0.00016876,2]
[408297356,1773378643876,-3026.48,0.00016904,2]
[408297357,1773378643886,-4359.28278715,0.00016986,2]
[408297358,1773378643895,-1000.0,0.00016986,2]
[408297359,1773378643907,-509.0,0.00017,2]
[408297360,1773378643916,-501.86761676,0.00017056,2]
[408297361,1773378643925,-407.42626355,0.00017108,2]
[408297362,1773378643934,-151.0,0.00017108,2]
[408297363,1773378643943,-657.76666424,0.00017108,2]
[408297364,1773378643952,-260.31902507,0.00017204,2]
[408297365,1773378643962,-1000.0,0.0001726,2]
[408297366,1773378643971,-2777.58,0.00017288,2]
[408297367,1773378643981,-168.0,0.000173,2]
[408297368,1773378643990,-500.0,0.00017323,2]
[408297369,1773378643999,-160.0,0.0001739,2]
[408297370,1773378644009,-4359.28278715,0.00017402,2]
[408297371,1773378644018,-242.8498014,0.00017423,2]
[408297372,1773378644028,-692.0,0.00017449,2]
[408297373,1773378644037,-1343.0,0.00017486,2]
[408297374,1773378644046,-7589.0,0.00017507,2]
[408297375,1773378644055,-1000.0,0.00017534,2]
[408297376,1773378644065,-13482.2289319,0.00017571,2]
[408297377,1773378644074,-161.2205917,0.00017575,2]
[408297378,1773378644083,-200.0,0.000176,6]
[408297379,1773378644092,-166.66,0.00017622,2]
[408297380,1773378644101,-1000.0,0.00017628,2]
[408297381,1773378644111,-347.3,0.00017699,2]
[408297382,1773378644120,-2777.58,0.00017699,2]
[408297383,1773378644128,-786.82467732,0.000177,2]
[408297384,1773378644138,-400.0,0.000177,6]
[408297385,1773378644147,-151.0,0.00017725,2]
[408297386,1773378644156,-4762.52,0.00017728,2]
[408297387,1773378644165,-29999.99,0.00017728,2]
[408297388,1773378644174,-2000.0,0.00017762,2]
[408297389,1773378644184,-500.0,0.00017799,2]
[408297390,1773378644193,-500.0,0.00017799,2]
[408297391,1773378644203,-600.0,0.000178,6]
[408297392,1773378644212,-150.0,0.00017808,2]
[408297393,1773378644221,-1000.0,0.00017808,2]
[408297394,1773378644231,-783.63011403,0.00017808,2]
[408297395,1773378644240,-4359.28278715,0.00017818,2]
[408297396,1773378644249,-1007.41782398,0.0001786,2]
[408297397,1773378644259,-150.0,0.00017863,2]
[408297398,1773378644268,-1229.1914403,0.0001789,2]
[408297399,1773378644277,-1077.11010336,0.0001789,2]
[408297400,1773378644286,-800.0,0.000179,6]
[408297401,1773378644295,-3795.40556031,0.000179,2]
[408297402,1773378644305,-10344.43735993,0.000179,2]
[408297403,1773378644314,-887.73,0.00017903,2]
[408297404,1773378644323,-1055.0,0.00017917,2]
[408297405,1773378644332,-154.15935752,0.00017918,2]
[408297406,1773378644342,-152.0,0.00017936,5]
[408297407,1773378644351,-13516.6507,0.00017963,2]
[408297408,1773378644360,-174.89,0.00018,2]
[408297409,1773378644369,-82011.8297892,0.00018,2]
[408297410,1773378644379,-308.94322639,0.00018,2]
[408297411,1773378644399,-1003.45460242,0.00018,2]
[408297412,1773378644421,-1000.0,0.00018082,2]
[408297413,1773378644432,-2777.58,0.00018111,2]
[408297414,1773378644442,-9618.47829131,0.00018122,2]
[408297415,1773378644456,-725.9590686,0.00018122,2]
[408297416,1773378644466,-620.0,0.00018135,2]
[408297417,1773378644475,-3753.0,0.00018135,2]
[408297418,1773378644485,-414.0,0.00018135,2]
[408297419,1773378644494,-5998.0,0.00018135,2]
[408297420,1773378644503,-166.66,0.00018136,2]
[408297421,1773378644513,-2351.0,0.00018148,2]
[408297422,1773378644522,-3795.40556025,0.00018186,2]
[408297423,1773378644531,-500.0,0.00018211,2]
[408297424,1773378644540,-500.0,0.00018211,2]
[408297425,1773378644549,-500.0,0.00018211,2]
[408297426,1773378644558,-4359.28278715,0.00018235,2]
[408297427,1773378644567,-173.44,0.0001829,2]
[408297428,1773378644577,-6803.57891163,0.00018344,2]
[408297431,1773378916603,8500.01,0.000129,10]
[408297432,1773378916625,10000.01,0.000129,10]
[408297433,1773378916647,10000.01,0.000129,10]
[408297434,1773378916669,10000.01,0.000129,10]
[408297435,1773378916691,10000.01,0.000129,10]
[408297436,1773378916713,10000.01,0.000129,10]
[408297437,1773378916736,10000.01,0.000129,10]
[408297438,1773378916756,10000.01,0.000129,10]
[408297439,1773378916776,10000.01,0.000129,10]
[408297440,1773378916797,10000.01,0.000129,10]
[408297441,1773378916821,61499.9,0.000129,10]
[408297446,1773379220397,3426.08,0.00013909,2]
[408297447,1773379802656,814.2549055,0.00013792,2]
[408297455,1773379831372,-287.17432935,0.00014899,2]
[408297456,1773379831381,-274.0,0.00014899,2]
[408297457,1773379831391,-458.300577,0.00014927,7]
[408297458,1773379831401,-379.98375947,0.00014949,2]
[408297459,1773379831410,-250.0,0.00014949,2]
[408297460,1773379831420,-250.0,0.00014984,2]
[408297461,1773379831430,-1200.0,0.00014999,2]
[408297462,1773379831439,-300.0,0.00014999,2]
[408297463,1773379831448,-150.0,0.00014999,2]
[408297464,1773379831458,-334.30991642,0.00015,2]
[408297465,1773379831467,-600.0,0.00015,2]
[408297466,1773379831477,-150.0,0.00015,30]
[408297467,1773379831486,-250.0,0.00015,2]
[408297468,1773379831495,-435.23,0.00015035,2]
[408297469,1773379831505,-160.0,0.00015054,2]
[408297470,1773379831515,-215.303632,0.00015068,2]
[408297471,1773379831525,-1343.0,0.00015195,2]
[408297472,1773379831536,-103.4422101,0.00015433,2]
[408297473,1773379831552,-126.5577899,0.00015433,2]
[408297474,1773379831562,-300.0,0.0001552,2]
[408297475,1773379831571,-9999.99,0.00015521,2]
[408297476,1773379831581,-150.99,0.00015521,2]
[408297477,1773379831589,-63311.55,0.00015521,2]
[408297478,1773379831599,-2992.24,0.00015521,2]
[408297479,1773379831608,-430.114,0.00015521,2]
[408297480,1773379831617,-3508.0,0.00015521,2]
[408297481,1773379831627,-1043.0,0.00015521,2]
[408297482,1773379831636,-230.0,0.00015713,2]
[408297483,1773379831646,-230.0,0.00015928,2]
[408297484,1773379831655,-230.0,0.0001603,2]
[408297485,1773379831664,-389.84398187,0.00016045,2]
[408297486,1773379831673,-1743.71311486,0.00016096,2]
[408297487,1773379831682,-8007.63,0.00016116,2]
[408297488,1773379831692,-36501.95309029,0.00016125,2]
[408297489,1773379831702,-230.0,0.00016167,2]
[408297491,1773379831711,-173.44,0.00016196,2]
[408297493,1773379831724,-589.634,0.00016216,2]
[408297494,1773379831734,-448.0,0.00016229,2]
[408297495,1773379831743,-230.0,0.00016261,2]
[408297496,1773379831752,-156.18851376,0.00016262,2]
[408297497,1773379831762,-1271.0,0.00016296,2]
[408297498,1773379831771,-1587.0,0.00016328,2]
[408297499,1773379831781,-163.3177747,0.00016375,2]
[408297500,1773379831790,-5000.0,0.00016389,2]
[408297501,1773379831800,-600.0,0.00016389,2]
[408297502,1773379831809,-305.70426919,0.00016389,2]
[408297503,1773379831818,-250.0,0.00016389,2]
[408297504,1773379831828,-500.0,0.00016389,2]
[408297505,1773379831837,-420.0,0.00016416,2]
[408297506,1773379831846,-1010.4349,0.00016438,2]
[408297507,1773379831856,-1696.75055021,0.00016466,2]
[408297508,1773379831867,-12529.84944979,0.00016466,2]
[408297509,1773379831877,-2500.0,0.00016499,2]
[408297510,1773379831886,-1125.56967013,0.00016499,2]
[408297511,1773379831897,-1374.43032987,0.00016499,2]
[408297512,1773379831906,-2500.0,0.00016499,2]
[408297513,1773379831915,-2500.0,0.00016499,2]
[408297514,1773379831924,-2500.0,0.00016499,2]
[408297515,1773379831934,-195.0,0.00016499,2]
[408297516,1773379831943,-195.0,0.00016499,2]
[408297517,1773379831952,-195.0,0.00016499,2]
[408297518,1773379831962,-195.0,0.00016499,2]
[408297519,1773379831971,-197.77320952,0.00016499,2]
[408297520,1773379831980,-203.8379162,0.00016499,2]
[408297521,1773379831989,-500.0,0.00016499,2]
[408297522,1773379831998,-300.1591244,0.00016499,2]
[408297523,1773379832007,-300.0,0.00016499,2]
[408297524,1773379832017,-5000.0,0.00016499,2]
[408297525,1773379832026,-600.0,0.00016499,2]
[408297526,1773379832036,-1680.0,0.00016499,2]
[408297527,1773379832045,-500.0,0.000165,2]
[408297528,1773379832054,-151.0,0.00016516,2]
[408297529,1773379832064,-1743.71311486,0.00016519,2]
[408297530,1773379832073,-547.39,0.000166,7]
[408297531,1773379832082,-465.0,0.00016637,2]
[408297532,1773379832092,-230.0,0.00016703,2]
[408297533,1773379832101,-166.64,0.00016712,2]
[408297534,1773379832110,-2000.0,0.00016715,2]
[408297535,1773379832119,-1000.0,0.00016804,2]
[408297536,1773379832129,-166.66,0.0001687,2]
[408297537,1773379832142,-230.0,0.0001689,2]
[408297538,1773379832152,-1743.71311486,0.00016941,2]
[408297539,1773379832161,-150.0,0.00016954,2]
[408297540,1773379832170,-151.0,0.0001697,2]
[408297541,1773379832182,-1000.0,0.00016973,2]
[408297542,1773379832191,-1000.0,0.00016973,2]
[408297543,1773379832200,-1000.0,0.00016973,2]
[408297544,1773379832214,-1000.0,0.00016973,2]
[408297545,1773379832224,-300.0,0.00017,2]
[408297546,1773379832233,-509.0,0.00017,2]
[408297547,1773379832242,-200.0,0.00017076,2]
[408297548,1773379832251,-166.66,0.00017225,2]
[408297549,1773379832260,-1743.71311486,0.00017364,2]
[408297550,1773379832269,-1222.58840014,0.00017449,2]
[408297551,1773379832279,-160.0,0.00017463,2]
[408297552,1773379832291,-1516.0,0.00017475,2]
[408297553,1773379832302,-152.0,0.00017484,3]
[408297554,1773379832311,-1000.0,0.00017534,2]
[408297555,1773379832320,-166.66,0.00017543,2]
[408297556,1773379832329,-166.66,0.0001758,2]
[408297557,1773379832339,-151.0,0.00017641,2]
[408297558,1773379832348,-500.0,0.00017644,2]
[408297559,1773379832357,-150.0,0.00017644,2]
[408297560,1773379832367,-150.0,0.00017644,2]
[408297561,1773379832377,-150.0,0.00017644,2]
[408297562,1773379832386,-250.0,0.00017654,2]
[408297563,1773379832396,-505.28661314,0.00017699,2]
[408297564,1773379832406,-150.0,0.00017699,2]
[408297565,1773379832415,-150.0,0.00017699,2]
[408297566,1773379832424,-7951.96,0.00017728,2]
[408297567,1773379832433,-150.0,0.00017754,2]
[408297568,1773379832442,-1743.71311486,0.00017787,2]
[408297569,1773379832452,-1000.0,0.00017808,2]
[408297570,1773379832462,-150.0,0.00017808,2]
[408297571,1773379832471,-334.46640657,0.00017838,2]
[408297572,1773379832481,-150.0,0.00017863,2]
[408297573,1773379832490,-250.0,0.00017918,2]
[408297574,1773379832504,-166.66,0.00017936,2]
[408297575,1773379832514,-271.61750903,0.00017977,2]
[408297576,1773379832524,-609.80374128,0.00017977,2]
[408297577,1773379832532,-2500.0,0.00017986,2]
[408297578,1773379832541,-2990.53,0.0001808,2]
[408297579,1773379832550,-1000.0,0.00018082,2]
[408297580,1773379832560,-2087.23089506,0.00018086,2]
[408297581,1773379832570,-166.66,0.00018122,2]
[408297582,1773379832580,-537.88933628,0.00018149,2]
[408297583,1773379832593,-1813.11066372,0.00018149,2]
[408297584,1773379832602,-1343.0,0.00018195,2]
[408297585,1773379832612,-1743.71311486,0.00018209,2]
[408297586,1773379832621,-2795.99823691,0.0001827,2]
[408297587,1773379832630,-166.66,0.00018291,2]
[408297588,1773379832638,-239.96667002,0.00018344,2]
[408297589,1773379832648,-500.0,0.00018344,2]
[408297590,1773379832658,-1000.0,0.00018344,2]
[408297591,1773379832667,-222.29037725,0.00018344,2]
[408297592,1773379832676,-1000.0,0.00018344,2]
[408297593,1773379832686,-1000.0,0.00018344,2]
[408297594,1773379832695,-195.29084869,0.00018344,2]
[408297595,1773379832705,-1000.0,0.00018356,2]
[408297596,1773379832713,-175.045359,0.00018372,7]
[408297597,1773379832723,-500.0,0.00018451,2]
[408297598,1773379832732,-500.0,0.0001852,2]
[408297599,1773379832742,-163.592,0.00018521,2]
[408297600,1773379832751,-1043.0,0.00018521,2]
[408297601,1773379832760,-1000.0,0.0001863,2]
[408297602,1773379832769,-1743.71311486,0.00018632,2]
[408297603,1773379832778,-166.66,0.00018646,2]
[408297604,1773379832787,-166.66,0.00018701,2]
[408297605,1773379832796,-155.85183097,0.0001873,2]
[408297606,1773379832805,-887.0,0.00018804,2]
[408297607,1773379832814,-2000.0,0.00018805,2]
[408297608,1773379832825,-1500.0,0.00018824,2]
[408297609,1773379832834,-1547.527284,0.00018824,2]
[408297610,1773379832844,-1999.0,0.00018904,2]
[408297611,1773379832854,-260.07,0.00018976,2]
[408297612,1773379832863,-475.46675357,0.00019,2]
[408297613,1773379832872,-4190.0,0.00019,2]
[408297614,1773379832881,-2626.88533399,0.00019,2]
[408297615,1773379832890,-350.0,0.00019,2]
[408297616,1773379832899,-1743.71311486,0.00019055,2]
[408297617,1773379832908,-500.0,0.00019055,2]
[408297618,1773379832918,-500.0,0.00019101,2]
[408297619,1773379832927,-500.0,0.00019101,2]
[408297620,1773379832936,-500.0,0.00019101,2]
[408297621,1773379832946,-500.0,0.00019101,2]
[408297622,1773379832955,-500.0,0.00019101,2]
[408297623,1773379832964,-500.0,0.00019101,2]
[408297624,1773379832973,-500.0,0.00019101,2]
[408297625,1773379832982,-500.0,0.00019106,2]
[408297626,1773379832991,-517.30693522,0.00019106,2]
[408297627,1773379833000,-500.0,0.00019106,2]
[408297628,1773379833010,-500.0,0.00019106,2]
[408297629,1773379833019,-2675.72,0.00019106,2]
[408297630,1773379833028,-2000.0,0.000192,2]
[408297631,1773379833038,-409.80911551,0.00019232,2]
[408297632,1773379833047,-500.0,0.00019232,2]
[408297633,1773379833057,-157.33716642,0.00019232,2]
[408297634,1773379833066,-500.0,0.00019232,2]
[408297635,1773379833076,-166.66,0.0001928,2]
[408297636,1773379833085,-1174.72861785,0.0001938,2]
[408297637,1773379833094,-810.0,0.00019403,5]
[408297638,1773379833105,-1743.71311486,0.00019477,2]
[408297639,1773379833114,-1000.0,0.000195,7]
[408297640,1773379833123,-200.5867457,0.000195,2]
[408297641,1773379833135,-509.0,0.0001952,4]
[408297642,1773379833144,-150.0,0.00019554,2]
[408297643,1773379833154,-200.0,0.000196,7]
[408297644,1773379833163,-347.3,0.00019665,2]
[408297645,1773379833172,-200.0,0.000197,7]
[408297646,1773379833182,-2867.33807945,0.000197,2]
[408297648,1773379837455,-230.0,0.00015361,2]
[408297649,1773379837464,-230.0,0.00015646,2]
[408297650,1773379837473,-565.39139094,0.00016123,2]
[408297653,1773379837566,-4292.42175273,0.00016123,2]
[408297654,1773379837576,-358.06748174,0.000197,2]
[408297655,1773379837586,-356.24433803,0.000197,2]
[408297656,1773379837596,-151.0,0.000197,2]
[408297657,1773379837605,-350.0,0.0001971,2]
[408297658,1773379837614,-500.0,0.0001971,2]
[408297659,1773379837624,-425.13,0.00019711,2]
[408297660,1773379837633,-1911.23,0.00019711,2]
[408297661,1773379837642,-13859.35,0.00019711,2]
[408297662,1773379837651,-3225.40556116,0.00019729,2]
[408297663,1773379837662,-260.07913724,0.00019735,2]
[408297664,1773379837671,-152.0,0.00019741,4]
[408297665,1773379837680,-154.39074789,0.00019741,5]
[408297666,1773379837690,-150.0,0.00019748,2]
[408297667,1773379837699,-3225.40556116,0.00019757,2]
[408297668,1773379837708,-3225.40556116,0.00019786,2]
[408297669,1773379837718,-739.0,0.000198,2]
[408297670,1773379837727,-200.0,0.000198,7]
[408297671,1773379837737,-8830.0213978,0.000198,2]
[408297672,1773379837748,-4315.24,0.00019805,2]
[408297673,1773379837758,-8830.02139775,0.00019811,2]
[408297674,1773379837770,-3225.40556116,0.00019814,2]
[408297675,1773379837779,-8830.02139775,0.00019822,2]
[408297676,1773379837788,-8830.02139775,0.00019833,2]
[408297677,1773379837797,-3225.40556116,0.00019843,2]
[408297678,1773379837807,-8830.02139775,0.00019844,2]
[408297679,1773379837816,-151.0,0.00019853,2]
[408297680,1773379837825,-4531.14701728,0.00019856,2]
[408297691,1773379839802,-1103.37932466,0.00019459,2]
[408297692,1773379839812,-863.57067534,0.00019459,2]
[408297693,1773379839968,-313.41083461,0.00015195,2]
[408297694,1773379840026,-2773.42553815,0.00015195,2]
[408297695,1773379840037,-2693.19686305,0.00015195,2]
[408297696,1773379840049,-217.96676419,0.00015195,2]
[408297697,1773379840059,-222.63340637,0.00019459,2]
[408297698,1773379840068,-69.05545567,0.00019856,2]
[408297699,1773379840079,-1820.617098,0.00019856,2]
[408297700,1773379840198,-230.0,0.00016347,2]
[408297701,1773379840209,-2409.2018268,0.00019856,2]
[408297702,1773379840219,-195.66515681,0.00019856,2]
[408297703,1773379840228,-166.66,0.00019859,2]
[408297704,1773379840238,-8830.02139775,0.00019867,2]
[408297705,1773379840247,-2643.94267032,0.0001987,2]
[408297706,1773379840256,-3225.40556116,0.00019871,2]
[408297708,1773379840265,-7682.79046056,0.00019878,2]
[408297710,1773379840276,-522.9232407,0.00019878,2]
[408297729,1773379842487,-5998.0,0.00018195,2]
[408297730,1773379842497,-1092.47229569,0.00019459,2]
[408297731,1773379842514,-1056.05709625,0.00019459,2]
[408297732,1773379842525,-690.3611688,0.00019856,2]
[408297733,1773379842535,-624.30769649,0.00019878,2]
[408297734,1773379842544,-240.33031362,0.00019878,2]
[408297735,1773379842554,-8830.02139775,0.00019889,2]
[408297736,1773379842564,-250.0,0.0001989,2]
[408297737,1773379842578,-155.23749059,0.00019897,2]
[408297738,1773379842601,-887.73,0.00019899,2]
[408297739,1773379842622,-500.0,0.00019899,2]
[408297740,1773379842633,-500.0,0.00019899,2]
[408297741,1773379842643,-543.08,0.00019899,2]
[408297742,1773379842652,-500.0,0.00019899,2]
[408297743,1773379842663,-500.0,0.00019899,2]
[408297744,1773379842674,-500.0,0.000199,2]
[408297745,1773379842683,-500.0,0.000199,2]
[408297746,1773379842694,-500.0,0.000199,2]
[408297747,1773379842704,-337.53416247,0.000199,2]
[408297748,1773379842715,-50102.63225937,0.000199,2]
[408297749,1773379842725,-200.0,0.000199,7]
[408297750,1773379842735,-168.0,0.000199,2]
[408297751,1773379842745,-308.26346246,0.000199,3]
[408297752,1773379842756,-9849.66948841,0.000199,3]
[408297753,1773379842766,-10000.0,0.000199,2]
[408297754,1773379842778,-522.97275754,0.000199,2]
[408297755,1773379842787,-5000.0,0.000199,2]
[408297756,1773379842800,-723.88081748,0.000199,2]